bitfinex-derivatives/quotes_ETHF0:USTF0_20251118
["timestamp","ask_amount","ask_price","bid_price","bid_amount"]
[1763473228275,3.21110381,3044.7,3044.1,0.00858131]
[1763473228475,0.00330381,3044.7,3044.1,3.21638131]
[1763473228681,0.00330381,3044.7,3044.5,3.2078]
[1763473229170,3.2078,3045.3,3044.5,9.2078]
[1763473229371,0.3377,3046.4,3045.1,0.53257]
[1763473229372,3.2078,3045.9,3045.1,0.53257]
[1763473229572,3.2078,3046.8,3045.8,3.2078]
[1763473229877,3.2078,3046.8,3046.0,0.00492684]
[1763473230279,3.21166118,3046.8,3046.3,3.2078]
[1763473230580,3.21166118,3046.8,3046.3,3.21088274]
[1763473230581,0.00386118,3046.8,3046.3,3.21088274]
[1763473230972,3.2078,3046.5,3046.3,0.00308274]
[1763473231374,3.28626118,3046.8,3046.4,3.2078]
[1763473231375,0.00386118,3046.8,3046.4,3.2078]
[1763473232081,3.5853,3047.4,3046.4,3.2078]
[1763473232082,3.2078,3047.4,3046.4,3.2078]
[1763473232375,3.2078,3047.4,3046.5,0.3557]
[1763473232577,3.5853,3047.4,3046.4,3.2078]
[1763473233085,3.2078,3046.6,3046.3,0.00308274]
[1763473233385,3.2078,3046.5,3046.3,0.00308274]
[1763473233576,3.2078,3046.9,3046.3,0.00308274]
[1763473234178,3.21118399,3047.4,3046.7,0.53229]
[1763473234384,0.00338399,3047.4,3047.0,3.2078]
[1763473234580,0.00338399,3047.4,3047.2,0.53221]
[1763473234779,0.00338399,3047.4,3047.0,3.2078]
[1763473240090,0.00338399,3047.4,3047.0,3.74005]
[1763473240275,0.00338399,3047.4,3047.2,0.5322]
[1763473240689,0.00338399,3047.4,3047.2,3.813]
[1763473240985,3.2078,3048.5,3047.4,0.3523]
[1763473241184,0.0346,3048.7,3048.3,3.2078]
[1763473241587,0.0346,3048.7,3048.3,1.89117078]
[1763473241883,0.0346,3048.7,3048.3,3.2078]
[1763473242088,0.03732448,3048.7,3048.3,3.2078]
[1763473242479,0.03732448,3048.7,3048.3,3.73982]
[1763473242789,0.03732448,3048.7,3048.3,3.2078]
[1763473242987,3.2078,3048.6,3047.9,3.2078]
[1763473243580,3.2078,3048.2,3047.6,0.00492684]
[1763473243780,3.2078,3048.6,3047.7,3.2078]
[1763473244187,3.2078,3048.2,3047.7,3.2078]
[1763473244784,3.2078,3048.2,3047.6,0.00492684]
[1763473245986,0.3775,3048.0,3047.3,2.56025887]
[1763473246187,3.2078,3047.4,3046.5,3.2078]
[1763473246794,3.2078,3046.9,3046.5,3.2078]
[1763473247086,3.2078,3046.9,3046.4,0.00492684]
[1763473247291,0.00487055,3047.0,3046.6,0.53232]
[1763473247591,3.2078,3047.7,3046.9,3.2078]
[1763473247983,3.2078,3047.7,3046.4,0.35722684]
[1763473247984,3.2078,3047.3,3046.4,0.00492684]
[1763473248192,3.2078,3046.8,3046.4,0.00492684]
[1763473248492,3.2078,3047.2,3046.4,0.00492684]
[1763473248690,3.2078,3046.8,3046.4,0.00492684]
[1763473250991,3.2078,3047.2,3046.6,0.53232]
[1763473251296,3.2078,3047.6,3046.7,3.2078]
[1763473252096,3.2078,3047.6,3046.9,0.53226]
[1763473252495,3.2078,3047.1,3046.4,0.89297684]
[1763473252794,3.2078,3047.6,3046.9,3.74007]
[1763473253490,3.2078,3047.6,3046.9,3.2078]
[1763473253689,3.2078,3047.2,3046.5,3.2078]
[1763473253892,3.2078,3047.2,3046.4,0.36062684]
[1763473253893,3.2078,3047.6,3046.9,3.2078]
[1763473254388,3.2078,3047.6,3047.0,0.53225]
[1763473254601,3.2078,3047.6,3046.9,3.2078]
[1763473254796,3.2078,3047.6,3046.9,3.74007]
[1763473254993,3.2078,3047.6,3046.9,3.2078]
[1763473255398,3.2078,3048.0,3047.3,3.2078]
[1763473255697,3.2078,3048.0,3047.4,0.53218]
[1763473255999,3.2078,3048.0,3047.5,0.53216]
[1763473256198,3.2078,3048.0,3047.3,3.2078]
[1763473256404,3.5853,3048.0,3047.3,3.2078]
[1763473256887,3.2078,3048.0,3047.4,0.53216]
[1763473257198,3.2078,3048.0,3047.3,3.2078]
[1763473257590,3.2078,3048.0,3047.3,3.74]
[1763473258002,3.588,3048.0,3047.3,3.2078]
[1763473258197,3.2078,3047.6,3046.9,3.2078]
[1763473258497,3.2078,3048.0,3047.3,3.74]
[1763473258701,3.2078,3048.0,3047.3,3.2078]
[1763473259288,3.2078,3047.6,3046.9,3.2078]
[1763473259696,3.2078,3047.6,3046.9,3.74006]
[1763473260000,4.36716307,3048.0,3046.9,3.2078]
[1763473260200,3.2078,3047.6,3046.9,3.2078]
[1763473260402,0.3802,3047.8,3046.9,3.2078]
[1763473260593,1.53956307,3047.8,3046.9,3.2078]
[1763473260798,1.15936307,3047.4,3046.5,3.2078]
[1763473260994,4.36716307,3047.5,3046.9,3.74006]
[1763473261193,3.2078,3047.5,3046.9,3.2078]
[1763473261398,0.3802,3047.8,3047.3,3.2078]
[1763473261612,4.36716307,3048.0,3047.3,3.2078]
[1763473261797,3.2078,3048.0,3047.6,0.53215]
[1763473262287,3.2078,3048.0,3047.3,3.2078]
[1763473262288,3.2078,3048.0,3047.5,0.53216]
[1763473262492,3.2078,3048.0,3047.3,3.2078]
[1763473262896,3.2078,3048.0,3047.5,0.53215]
[1763473263297,3.2078,3048.0,3047.3,3.2078]
[1763473263298,3.2078,3048.0,3047.4,0.53216]
[1763473263698,3.2078,3048.0,3047.3,3.2078]
[1763473264600,4.36716307,3048.0,3047.3,3.2078]
[1763473264899,1.15936307,3047.5,3046.9,3.2078]
[1763473265104,3.2078,3047.6,3046.9,3.2078]
[1763473265597,1.15936307,3047.9,3047.3,3.2078]
[1763473265796,3.2078,3048.1,3047.3,3.2078]
[1763473266311,3.2078,3048.1,3047.6,0.53214]
[1763473266810,3.2078,3048.1,3047.3,3.2078]
[1763473267309,3.2078,3047.7,3047.0,3.2078]
[1763473267604,2.35323599,3048.7,3046.4,0.00492684]
[1763473267605,3.2078,3047.1,3046.4,0.00492684]
[1763473267804,3.2078,3047.1,3046.4,0.33092684]
[1763473268007,4.36716307,3047.5,3046.8,3.74008]
[1763473268204,3.2078,3047.5,3046.8,3.2078]
[1763473268912,3.2078,3047.5,3046.4,0.00492684]
[1763473268913,0.3802,3047.2,3046.4,3.21272684]
[1763473269411,4.36716307,3047.0,3046.4,3.21272684]
[1763473269800,1.15936307,3047.0,3046.4,0.00492684]
[1763473270004,1.15936307,3047.1,3046.4,0.00492684]
[1763473270310,4.36716307,3046.9,3046.4,0.00492684]
[1763473270700,3.2078,3046.9,3046.4,0.00492684]
[1763473271011,3.2078,3046.5,3046.4,0.00492684]
[1763473271311,3.21045596,3046.5,3046.4,0.00492684]
[1763473271610,3.21045596,3046.5,3046.4,2.684e-05]
[1763473273104,0.3406,3046.4,3045.9,3.2078]
[1763473273301,3.2078,3046.0,3045.1,0.53258]
[1763473273603,3.2078,3046.0,3045.0,3.2078]
[1763473273807,4.36716307,3046.0,3045.0,3.2078]
[1763473274203,1.15936307,3045.9,3045.2,0.00492684]
[1763473274403,0.3802,3045.7,3045.2,0.00492684]
[1763473274609,3.2078,3045.6,3045.2,0.00492684]
[1763473275309,3.2078,3045.6,3045.0,0.00290623]
[1763473275612,3.2078,3045.5,3044.6,3.2078]
[1763473276207,0.3802,3045.7,3043.6,42.22573621]
[1763473276208,3.588,3045.0,3044.1,3.2078]
[1763473276509,0.00492684,3044.9,3044.5,3.2078]
[1763473276704,3.2078,3044.8,3044.2,0.00492684]
[1763473277610,0.3802,3044.3,3044.2,0.00492684]
[1763473277909,0.00288615,3044.3,3044.2,0.00492684]
[1763473278105,0.38308615,3044.3,3044.2,0.00492684]
[1763473278305,0.38308615,3044.3,3044.1,0.00345544]
[1763473280504,0.00288615,3044.3,3044.1,0.00345544]
[1763473281715,3.2078,3043.6,3042.2,1.16263621]
[1763473281913,6.65,3044.2,3041.5,1.55163621]
[1763473281914,3.2078,3042.3,3041.5,1.55163621]
[1763473282105,3.2078,3041.9,3041.5,0.389]
[1763473282815,3.21193382,3041.9,3041.5,0.39257064]
[1763473287312,3.21193382,3041.9,3041.6,0.53318]
[1763473287622,3.21193382,3041.9,3041.5,0.39257064]
[1763473287819,3.21193382,3041.9,3041.7,0.53318]
[1763473288018,3.21193382,3041.9,3041.5,0.39257064]
[1763473288414,3.21193382,3041.9,3041.7,0.53317]
[1763473288716,3.21193382,3041.9,3041.5,0.39257064]
[1763473288909,0.00413382,3041.9,3041.5,0.39257064]
[1763473289114,0.00413382,3041.9,3041.8,0.53316]
[1763473289420,3.382e-05,3041.9,3041.5,0.39257064]
[1763473289918,3.382e-05,3041.9,3041.5,0.92578064]
[1763473290114,3.382e-05,3041.9,3041.5,0.39257064]
[1763473290319,3.2078,3041.7,3041.5,0.39257064]
[1763473290519,3.382e-05,3041.9,3041.5,0.39257064]
[1763473291314,3.382e-05,3041.9,3041.8,0.53316]
[1763473291814,3.382e-05,3041.9,3041.5,0.39257064]
[1763473292412,3.2078,3041.7,3041.5,0.39257064]
[1763473293723,3.2078,3041.7,3041.5,0.92577064]
[1763473294921,3.2078,3041.7,3041.5,0.39257064]
[1763473295320,3.2078,3041.7,3041.6,0.5332]
[1763473295821,3.2078,3041.7,3041.5,0.39257064]
[1763473296124,3.382e-05,3041.9,3041.6,0.5332]
[1763473296325,3.382e-05,3041.9,3041.7,0.53318]
[1763473296520,3.382e-05,3041.9,3041.8,0.53316]
[1763473296728,3.382e-05,3041.9,3041.7,0.53318]
[1763473296925,3.382e-05,3041.9,3041.8,0.53316]
[1763473297924,3.2078,3042.2,3042.1,0.53311]
[1763473298122,3.2078,3043.5,3042.9,0.4154]
[1763473298324,3.2078,3043.0,3042.9,0.4154]
[1763473298518,3.2078,3043.4,3043.0,0.53295]
[1763473298728,3.2078,3043.4,3042.9,0.4154]
[1763473299026,3.21061044,3043.4,3043.0,0.53294]
[1763473299732,3.21061044,3043.4,3043.1,0.53293]
[1763473300130,3.21061044,3043.4,3042.9,0.4154]
[1763473301026,3.2078,3043.0,3042.8,0.00492684]
[1763473302825,3.21061044,3043.4,3042.8,0.00492684]
[1763473303028,3.2078,3043.0,3042.9,0.4154]
[1763473304830,0.00281044,3043.4,3042.9,0.4154]
[1763473305027,3.2078,3043.0,3042.8,0.00492684]
[1763473305226,3.2078,3043.0,3042.9,0.4154]
[1763473305423,3.2078,3043.0,3042.9,0.94837]
[1763473305735,0.00281044,3043.4,3042.9,0.94837]
[1763473305736,0.00281044,3043.4,3042.9,0.4154]
[1763473306036,3.2078,3043.1,3042.9,0.4154]
[1763473306828,0.00281044,3043.4,3042.9,3.6232]
[1763473307529,0.00281044,3043.4,3042.9,0.94836]
[1763473307729,0.00281044,3043.4,3042.9,3.6232]
[1763473307929,0.00281044,3043.4,3043.0,0.53294]
[1763473308126,0.00281044,3043.4,3043.1,0.53293]
[1763473308333,0.00281044,3043.4,3043.1,0.53292]
[1763473308529,0.00281044,3043.4,3042.9,3.6232]
[1763473308930,0.00281044,3043.4,3043.0,0.53295]
[1763473309334,0.00281044,3043.4,3042.9,3.6232]
[1763473310138,0.00281044,3043.4,3043.1,0.53293]
[1763473310438,0.00281044,3043.4,3042.9,3.6232]
[1763473310639,0.00281044,3043.4,3042.9,4.15617]
[1763473310840,0.00281044,3043.4,3043.0,0.53293]
[1763473311133,0.00281044,3043.4,3042.9,4.15617]
[1763473311335,0.00281044,3043.4,3043.0,0.53294]
[1763473311536,0.00281044,3043.4,3042.9,4.15617]
[1763473311736,0.00281044,3043.4,3043.0,0.53295]
[1763473311936,0.00281044,3043.4,3042.9,3.6232]
[1763473311937,0.00281044,3043.4,3043.3,0.6433]
[1763473312732,0.00281044,3043.4,3043.3,1.1762]
[1763473313633,0.00281044,3043.4,3043.3,0.6433]
[1763473315340,3.2078,3043.9,3043.8,1.0587]
[1763473315643,3.2078,3043.9,3043.8,0.4154]
[1763473316240,3.2078,3044.3,3044.2,0.6433]
[1763473316438,0.00348259,3044.3,3044.2,0.64661509]
[1763473317944,0.00348259,3044.3,3044.2,0.00331509]
[1763473318747,3.21128259,3044.3,3044.2,0.00331509]
[1763473318940,9.93858809,3044.3,3043.7,3.2078]
[1763473319140,0.7273055,3044.2,3043.2,3.6232]
[1763473319741,3.2078,3043.3,3042.8,0.00492684]
[1763473319946,3.2078,3043.3,3042.8,0.00784741]
[1763473319947,3.2078,3042.9,3042.8,0.00784741]
[1763473320139,3.93421004,3042.9,3042.8,0.00784741]
[1763473321233,13.21981004,3042.9,3042.0,0.4154]
[1763473321435,3.2078,3042.1,3042.0,0.4154]
[1763473321641,3.2078,3042.5,3042.0,0.4154]
[1763473321837,0.72637485,3042.4,3041.6,3.2078]
[1763473322042,0.72637485,3042.4,3040.8,2.19792527]
[1763473322043,3.2078,3041.7,3040.8,0.4282]
[1763473322249,3.2078,3040.9,3040.8,0.43246002]
[1763473322938,3.2078,3041.2,3040.8,0.43246002]
[1763473324745,3.2078,3041.2,3040.8,0.00426002]
[1763473324939,3.2078,3041.2,3040.5,0.00492684]
[1763473325141,0.00492684,3041.6,3040.5,0.00492684]
[1763473325142,3.2078,3040.7,3040.5,0.00492684]
[1763473325453,0.72399771,3040.6,3039.6,3.636]
[1763473325657,3.2078,3040.0,3039.6,3.636]
[1763473325948,3.2078,3040.0,3039.6,0.43188771]
[1763473326343,3.2078,3040.0,3039.6,0.00368771]
[1763473326546,3.2078,3040.0,3039.5,0.00492684]
[1763473326837,3.2078,3040.0,3038.7,3.24070935]
[1763473326838,3.2078,3039.6,3038.7,3.66890935]
[1763473327043,3.2078,3039.2,3038.7,3.66890935]
[1763473327242,3.2078,3038.8,3038.7,0.46110935]
[1763473327444,3.2078,3038.8,3038.1,3.2078]
[1763473327740,3.2078,3038.8,3038.1,3.21517605]
[1763473327741,3.21527424,3038.8,3038.1,3.21517605]
[1763473328154,3.2078,3038.4,3038.1,0.00737605]
[1763473329654,3.2078,3039.4,3038.7,0.4282]
[1763473329846,3.2078,3040.3,3039.3,3.2078]
[1763473330050,3.2078,3039.9,3039.3,3.2078]
[1763473330249,3.2078,3039.9,3036.2,3.2078]
[1763473330250,3.2078,3039.1,3036.2,3.2078]
[1763473330449,3.2078,3037.4,3036.2,3.2078]
[1763473330757,3.2078,3037.0,3036.8,0.00493502]
[1763473330953,3.2078,3037.0,3036.8,0.4282]
[1763473331351,0.99683411,3037.0,3036.8,6.96518092]
[1763473331550,0.00493502,3037.4,3036.9,3.2078]
[1763473331858,3.2078,3037.2,3036.8,0.43608594]
[1763473332455,3.21153556,3037.2,3036.8,0.43608594]
[1763473332659,3.2078,3036.8,3035.0,3.2078]
[1763473332959,3.2078,3035.4,3034.5,3.2078]
[1763473333254,3.2078,3035.4,3034.4,0.4282]
[1763473333451,3.2078,3035.4,3035.0,3.2078]
[1763473333654,3.2078,3035.4,3035.2,0.43136938]
[1763473334949,3.2078,3035.4,3035.2,0.96567938]
[1763473335356,3.2078,3035.4,3035.2,0.43136938]
[1763473335554,3.2078,3035.4,3035.2,6.96567938]
[1763473335864,3.2078,3035.4,3035.2,0.43136938]
[1763473336258,0.00493502,3035.6,3035.5,0.53427]
[1763473336459,3.2078,3036.4,3035.7,0.53422]
[1763473336653,0.00373556,3037.2,3035.7,0.53422]
[1763473336654,3.2078,3036.8,3036.0,0.96237]
[1763473336858,3.2078,3036.8,3036.1,3.2078]
[1763473337255,0.00373556,3037.2,3036.8,0.4282]
[1763473337462,3.21153556,3037.2,3036.8,0.4282]
[1763473338268,3.21153556,3037.2,3036.8,0.96223]
[1763473338464,3.21153556,3037.2,3037.0,0.53399]
[1763473338871,3.21153556,3037.2,3036.8,0.4282]
[1763473339072,3.21153556,3037.2,3037.0,0.534]
[1763473339462,0.00373556,3037.2,3037.1,3.2078]
[1763473340864,3.2078,3037.8,3037.3,0.53394]
[1763473341072,3.2078,3037.8,3037.6,0.5471]
[1763473341876,3.2078,3037.8,3037.6,0.55017897]
[1763473342072,3.21139387,3037.8,3036.8,0.4282]
[1763473342269,3.2078,3037.1,3036.8,0.4282]
[1763473343071,3.2078,3037.1,3036.8,0.43126905]
[1763473346379,3.2078,3037.1,3037.0,0.534]
[1763473346880,3.2078,3037.1,3036.8,0.43126905]
[1763473351591,3.2078,3037.1,3036.8,0.96529905]
[1763473351980,3.2078,3037.1,3037.0,0.534]
[1763473352180,0.00359387,3037.8,3036.8,0.43126905]
[1763473352181,3.2078,3037.5,3036.8,0.43126905]
[1763473352387,3.2078,3037.5,3036.8,0.96530905]
[1763473352586,3.2078,3037.5,3036.8,0.43126905]
[1763473352781,3.2078,3037.0,3036.7,0.00493502]
[1763473353691,3.2078,3037.0,3036.7,0.0086248]
[1763473353890,3.2078,3037.0,3036.8,0.53403]
[1763473354091,3.2078,3037.0,3036.7,0.0086248]
[1763473354694,3.2078,3037.4,3036.7,0.5426748]
[1763473354889,3.2078,3037.4,3037.3,0.5319]
[1763473356283,3.95627872,3037.4,3037.3,0.5319]
[1763473356480,3.95627865,3037.4,3037.3,0.5319]
[1763473356682,3.95627865,3037.4,3037.3,1.88795]
[1763473356901,3.2078,3037.4,3037.3,1.88795]
[1763473357090,3.21139387,3037.8,3037.3,1.88795]
[1763473357290,0.74914959,3037.7,3037.3,1.88795]
[1763473357790,0.74914959,3037.7,3037.4,0.53393]
[1763473358096,3.21139387,3037.8,3037.3,0.5319]
[1763473358290,3.21139387,3037.8,3037.3,1.06585]
[1763473358490,3.21139387,3037.8,3037.4,0.53392]
[1763473359293,0.74974974,3037.7,3037.3,0.5319]
[1763473359494,0.00493502,3038.0,3037.7,0.8221]
[1763473359799,0.00493502,3038.0,3037.9,4.0299]
[1763473359985,3.502e-05,3038.0,3037.9,4.56374]
[1763473360193,1.15936307,3039.6,3039.0,0.5319]
[1763473360394,0.75106411,3039.5,3039.1,3.2078]
[1763473360583,0.75106411,3039.4,3039.1,3.2078]
[1763473360787,0.75106411,3039.3,3039.1,3.21201501]
[1763473360983,0.00267147,3039.5,3039.3,0.53359]
[1763473361186,0.00267147,3039.5,3039.2,0.5336]
[1763473361392,0.00267147,3039.5,3039.1,3.21695003]
[1763473361589,3.502e-05,3039.7,3039.6,0.53355]
[1763473361792,1.15936307,3040.7,3040.1,0.5319]
[1763473361986,0.74419011,3040.6,3040.1,4.27316]
[1763473362196,3.2078,3041.2,3040.2,0.53344]
[1763473362398,0.74282818,3041.1,3040.3,0.53342]
[1763473362598,0.74570486,3041.1,3040.3,0.53342]
[1763473362801,0.00493502,3041.0,3040.3,0.53342]
[1763473363000,0.00493502,3041.0,3040.1,3.7397]
[1763473363691,0.00493502,3041.0,3040.1,4.27316]
[1763473364089,0.00493502,3041.0,3040.1,3.7397]
[1763473364289,3.2078,3040.7,3040.1,3.7397]
[1763473364489,0.00493502,3041.0,3040.1,3.7397]
[1763473364893,0.00493502,3041.0,3040.8,0.5319]
[1763473365094,0.00493502,3041.0,3040.1,3.7397]
[1763473365095,0.00493502,3041.0,3040.5,3.2078]
[1763473365995,3.2078,3040.7,3040.1,0.5319]
[1763473366198,3.2078,3040.2,3040.1,0.5319]
[1763473366592,3.2078,3040.2,3039.5,3.2078]
[1763473367394,0.00493502,3041.0,3039.4,0.5319]
[1763473367395,3.2078,3039.8,3039.4,0.5319]
[1763473367594,3.2078,3039.8,3039.4,3.7397]
[1763473368699,3.2078,3040.4,3040.1,0.5319]
[1763473370309,3.2078,3040.4,3039.7,3.2078]
[1763473371013,3.2078,3040.4,3039.4,0.5319]
[1763473371213,3.2078,3039.8,3039.4,0.5319]
[1763473371612,3.2078,3040.2,3039.4,1.06548]
[1763473371812,3.2078,3040.2,3039.6,3.2078]
[1763473372613,3.2078,3040.2,3039.7,0.53351]
[1763473372813,3.2078,3040.2,3039.6,3.2078]
[1763473373507,3.2078,3040.2,3039.6,3.74134]
[1763473373716,0.00493502,3041.0,3040.9,0.8221]
[1763473373717,3.21273502,3041.0,3040.9,0.8221]
[1763473373910,0.00493502,3041.0,3040.9,3.2078]
[1763473374115,0.90023502,3041.0,3040.9,3.2078]
[1763473376711,0.90023502,3041.0,3040.6,0.00493502]
[1763473381425,0.8953,3040.7,3040.6,0.00493502]
[1763473381638,0.8953,3040.7,3040.5,3.2078]
[1763473381639,0.9779,3040.2,3039.6,3.2078]
[1763473381819,0.8689,3039.7,3039.6,3.2078]
[1763473382322,0.4949,3040.8,3039.6,3.2078]
[1763473382323,3.2078,3040.6,3039.6,3.7512]
[1763473382622,0.4949,3040.8,3040.0,3.2078]
[1763473382926,0.4949,3040.8,3040.1,0.00493502]
[1763473383316,0.4949,3040.8,3040.1,0.53838502]
[1763473383625,0.4949,3040.8,3040.1,0.00493502]
[1763473384323,0.8689,3040.2,3040.1,0.00493502]
[1763473384527,0.8689,3039.7,3039.6,3.2078]
[1763473387313,0.1453,3040.2,3039.6,3.2078]
[1763473387620,0.73489834,3040.1,3039.6,3.2078]
[1763473388225,0.8689,3039.7,3039.6,3.2078]
[1763473389116,1.60521013,3039.7,3039.6,3.2078]
[1763473389318,1.60521013,3039.7,3039.3,0.00493502]
[1763473389516,4.0767,3039.4,3039.3,0.00493502]
[1763473389716,4.81301013,3039.4,3039.3,0.00493502]
[1763473390316,0.73631013,3039.4,3039.3,0.00493502]
[1763473390517,1.15936307,3039.8,3039.3,0.00493502]
[1763473391125,0.73631013,3039.7,3039.3,0.00493502]
[1763473391315,0.73631013,3039.6,3039.5,0.9118]
[1763473391519,3.2078,3040.1,3039.5,0.9118]
[1763473391714,0.73670419,3040.0,3039.6,0.5434]
[1763473392532,0.73670419,3040.0,3039.4,3.2078]
[1763473393030,0.73670419,3040.0,3039.3,0.00493502]
[1763473393031,0.8689,3039.4,3039.3,0.00493502]
[1763473393222,1.15936307,3040.0,3039.3,0.00493502]
[1763473393420,1.89592169,3040.0,3039.3,0.00493502]
[1763473393923,0.8689,3039.4,3039.3,0.00493502]
[1763473394117,1.60545862,3039.4,3039.3,0.00493502]
[1763473394521,0.8689,3039.4,3039.3,0.00493502]
[1763473395131,3.2078,3039.7,3039.3,0.00493502]
[1763473395332,0.73663247,3039.6,3039.3,0.00493502]
[1763473395630,0.73663247,3039.6,3039.4,3.2078]
[1763473395821,1.15936307,3040.0,3039.4,3.2078]
[1763473396327,0.73663012,3039.9,3039.4,3.2078]
[1763473396632,0.73663012,3039.8,3039.4,3.2078]
[1763473396832,0.73663012,3039.7,3039.4,3.2078]
[1763473397134,0.73663012,3039.6,3039.4,3.2078]
[1763473397326,1.15936307,3040.1,3039.4,3.2078]
[1763473397528,1.89587923,3040.1,3039.4,3.2078]
[1763473398830,1.89587923,3040.1,3039.5,0.5434]
[1763473399034,1.89587923,3040.1,3039.4,3.2078]
[1763473400127,0.8689,3039.5,3039.4,3.2078]
[1763473400633,1.15936307,3040.1,3039.4,3.2078]
[1763473400835,0.73641091,3040.0,3039.5,0.4596]
[1763473401132,0.73641091,3039.9,3039.5,0.4596]
[1763473401334,0.73641091,3039.8,3039.5,0.4596]
[1763473401536,3.3531,3040.2,3039.5,0.4596]
[1763473401724,0.73611843,3040.1,3040.0,0.7813]
[1763473401929,3.2078,3040.6,3040.0,1.2409]
[1763473402232,0.73623876,3040.5,3040.4,0.7813]
[1763473402536,0.00493502,3041.0,3040.5,1.2409]
[1763473402732,0.74127897,3041.0,3040.5,1.2409]
[1763473404033,0.74127897,3041.0,3040.6,3.2078]
[1763473404234,0.00493502,3041.0,3040.9,0.7813]
[1763473405231,0.00493502,3041.0,3040.9,7.31462]
[1763473405435,0.00493502,3041.0,3040.9,6.7813]
[1763473405637,0.00493502,3041.0,3040.9,7.31462]
[1763473405841,0.00493502,3041.0,3040.9,0.7813]
[1763473407336,3.2078,3041.5,3040.9,0.7813]
[1763473407638,0.73535373,3041.4,3041.0,3.2078]
[1763473407835,0.73535373,3041.4,3041.3,0.7871]
[1763473408034,0.816,3041.4,3041.0,3.6614]
[1763473408337,0.81911695,3041.4,3041.0,3.66393038]
[1763473408536,0.00311695,3041.4,3041.3,0.7871]
[1763473409930,0.81911695,3041.4,3041.0,3.66393038]
[1763473410434,0.00311695,3041.4,3041.3,0.7871]
[1763473412744,0.81911695,3041.4,3041.0,3.66393038]
[1763473413142,0.81911695,3041.4,3041.0,3.21033038]
[1763473414051,0.81911695,3041.4,3041.0,3.66393038]
[1763473415333,0.81911695,3041.4,3041.0,0.00253038]
[1763473415334,0.816,3041.1,3041.0,0.00253038]
[1763473416241,0.00311695,3041.4,3041.0,0.45613038]
[1763473417149,0.81911695,3041.4,3041.0,0.45613038]
[1763473419148,0.81911695,3041.4,3041.0,0.45613038]
[1763473419952,0.00311695,3041.4,3041.3,0.7871]
[1763473421052,0.81911695,3041.4,3041.0,0.45613038]
[1763473423039,0.00311695,3041.4,3041.3,3.9949]
[1763473423240,0.00493502,3041.5,3041.4,0.7871]
[1763473424350,0.00799523,3041.5,3041.4,1.32033]
[1763473425149,0.816,3041.1,3041.0,0.00253038]
[1763473427352,3.21579523,3041.5,3041.0,0.45613038]
[1763473427558,0.73465176,3041.4,3041.3,0.7871]
[1763473427956,3.21579523,3041.5,3041.3,0.7871]
[1763473429153,3.21579523,3041.5,3041.4,0.7871]
[1763473429359,3.95130648,3041.5,3041.4,0.7871]
[1763473429759,3.95130648,3041.5,3041.0,0.98943038]
[1763473429949,3.21579523,3041.5,3041.4,0.7871]
[1763473430150,3.95128045,3041.5,3041.4,0.7871]
[1763473430350,0.74348045,3041.5,3041.4,0.7871]
[1763473430565,0.00799523,3041.5,3041.4,0.7871]
[1763473431156,0.00799523,3041.5,3041.2,3.2078]
[1763473431749,0.00799523,3041.5,3041.4,0.7871]
[1763473433464,3.2078,3041.9,3041.5,0.4536]
[1763473433965,3.2078,3041.9,3041.2,3.2078]
[1763473434365,3.21590735,3041.9,3041.8,0.7871]
[1763473434758,0.00810735,3041.9,3041.8,0.7871]
[1763473434977,0.00810735,3041.9,3041.8,1.32026]
[1763473435476,0.00810735,3041.9,3041.8,3.08998527]
[1763473436176,0.00810735,3041.9,3041.8,1.32026]
[1763473436766,0.00810735,3041.9,3041.8,0.7871]
[1763473437073,0.00810735,3041.9,3041.8,1.32026]
[1763473437970,0.00810735,3041.9,3041.8,0.7871]
[1763473438474,0.00810735,3041.9,3041.8,1.32026]
[1763473439170,3.2078,3042.8,3042.2,0.53309]
[1763473439375,3.2078,3042.8,3042.7,0.7221]
[1763473439674,3.2078,3043.3,3042.7,0.7221]
[1763473439973,3.2078,3043.3,3042.7,3.9299]
[1763473440277,3.21606189,3043.3,3042.7,3.21273502]
[1763473440470,3.21606189,3043.3,3042.8,0.53298]
[1763473440666,3.21606189,3043.3,3042.7,3.21273502]
[1763473440970,0.7057,3042.8,3042.7,3.21273502]
[1763473441172,3.21606189,3043.3,3042.7,3.93483502]
[1763473441979,0.7057,3042.8,3042.7,0.00493502]
[1763473442989,3.21606189,3043.3,3042.7,0.72703502]
[1763473443670,0.00826189,3043.3,3043.2,0.7221]
[1763473443979,0.7057,3043.3,3043.0,0.97325]
[1763473444177,3.2424,3043.7,3043.2,1.255]
[1763473444380,3.2424,3043.7,3043.2,0.7221]
[1763473444881,3.24511366,3043.7,3043.2,0.7261302]
[1763473445076,0.7057,3043.3,3043.2,0.0040302]
[1763473445378,3.24511366,3043.7,3043.2,0.0040302]
[1763473445767,0.7057,3043.3,3043.2,0.0040302]
[1763473446080,0.7057,3042.8,3042.7,0.00493502]
[1763473446779,0.7057,3043.6,3043.0,0.4403]
[1763473446982,0.7057,3043.0,3042.7,0.00493502]
[1763473447282,0.7057,3043.0,3042.7,0.00898613]
[1763473447480,0.7057,3042.8,3042.7,0.00898613]
[1763473448375,3.2078,3043.1,3042.7,0.00898613]
[1763473448679,0.7057,3042.8,3042.7,0.00898613]
[1763473451072,0.7057,3042.1,3042.0,3.2078]
[1763473452181,0.7057,3042.1,3042.0,3.21180248]
[1763473452680,0.7057,3042.1,3042.0,0.00400248]
[1763473453483,1.43680549,3042.1,3042.0,0.00400248]
[1763473454384,3.21273502,3042.4,3042.0,1.16640248]
[1763473454887,0.7057,3042.1,3042.0,0.00400248]
[1763473458190,0.00493502,3042.4,3042.0,0.00400248]
[1763473458889,0.7057,3042.2,3042.1,3.2078]
[1763473459384,0.00493502,3042.4,3042.1,3.9299]
[1763473459585,0.00493502,3042.4,3042.3,0.7221]
[1763473461490,0.68193502,3042.4,3042.3,0.7221]
[1763473461695,0.68193502,3042.4,3042.1,3.2078]
[1763473462089,0.677,3042.2,3042.1,3.2078]
[1763473462695,0.677,3042.2,3042.1,3.8833]
[1763473463091,0.00493502,3042.4,3042.1,3.8833]
[1763473463596,0.00493502,3042.4,3042.1,0.6755]